bitfinex-derivatives/quotes_SOLF0:USTF0_20250909
["timestamp","ask_amount","ask_price","bid_price","bid_amount"]
[1757427566827,309.78,217.36,217.25,7.34]
[1757427567524,309.78,217.36,217.25,11.4823]
[1757427568416,11.37405662,217.45,217.25,11.4823]
[1757427568611,125.58,217.44,217.25,11.4823]
[1757427568811,125.58,217.44,217.25,7.34]
[1757427569214,130.60884063,217.44,217.25,7.34]
[1757427569723,5.02884063,217.43,217.25,7.34]
[1757427570519,6.34521599,217.41,217.25,7.34]
[1757427570725,6.34521599,217.41,217.21,7.34]
[1757427572225,11.37405662,217.41,217.21,7.34]
[1757427574122,125.44,217.4,217.21,7.34]
[1757427574622,125.44,217.4,217.21,11.4832]
[1757427574831,57.26,217.39,217.21,7.34]
[1757427575220,57.26,217.39,217.22,4.1429]
[1757427576425,57.26,217.39,217.21,7.34]
[1757427577628,57.26,217.39,217.22,7.34]
[1757427580130,62.28884063,217.39,217.22,7.34]
[1757427581326,5.02884063,217.36,217.22,7.34]
[1757427583232,5.02884063,217.35,217.22,7.34]
[1757427583624,5.02884063,217.35,217.18,7.73]
[1757427583925,5.02884063,217.34,217.18,7.73]
[1757427584537,5.02884063,217.32,217.18,7.73]
[1757427584732,11.37405662,217.3,217.11,7.73]
[1757427585036,5.02884063,217.25,217.11,7.73]
[1757427585837,11.37405662,217.26,217.11,7.73]
[1757427586437,5.02884063,217.25,217.11,7.73]
[1757427586634,125.14,217.26,217.11,7.73]
[1757427587836,11.37405662,217.25,217.11,7.73]
[1757427588335,5.02884063,217.23,217.05,7.73]
[1757427589427,5.02884063,217.23,217.05,11.8762]
[1757427589630,5.02884063,217.23,217.06,7.73]
[1757427590333,5.02884063,217.24,217.06,7.73]
[1757427590732,5.02884063,217.25,217.06,7.73]
[1757427590934,124.0,217.25,217.06,7.73]
[1757427591134,52.76,217.25,217.13,7.73]
[1757427593338,57.78884063,217.25,217.13,7.73]
[1757427593741,5.02884063,217.24,217.06,7.73]
[1757427594044,5.02884063,217.23,217.06,7.73]
[1757427594842,5.02884063,217.2,216.98,7.73]
[1757427595141,5.02884063,217.19,216.98,7.73]
[1757427595442,5.02884063,217.18,216.98,7.73]
[1757427595834,5.02884063,217.18,216.98,11.8775]
[1757427596038,5.02884063,217.18,216.99,7.73]
[1757427596336,5.02884063,217.19,216.99,7.73]
[1757427597136,5.02884063,217.19,217.0,7.73]
[1757427597343,5.02884063,217.2,217.0,7.73]
[1757427597535,5.02884063,217.19,217.0,7.73]
[1757427598141,5.02884063,217.19,217.01,7.73]
[1757427598441,5.02884063,217.2,217.01,7.73]
[1757427599434,13.81,217.19,217.01,7.73]
[1757427599636,9.93235355,217.16,217.01,7.73]
[1757427599834,18.06,217.17,217.01,7.73]
[1757427600537,9.93235355,217.16,217.01,7.73]
[1757427601940,9.93235355,217.16,216.93,7.73]
[1757427602244,5.02884063,217.15,216.93,7.73]
[1757427602443,14.96119418,217.16,216.93,7.73]
[1757427602841,5.02884063,217.15,216.93,7.73]
[1757427603243,14.96119418,217.16,216.94,7.73]
[1757427603836,124.84,217.15,216.94,7.73]
[1757427604640,124.82,217.14,216.94,7.73]
[1757427604840,9.93235355,217.16,216.96,7.73]
[1757427605041,124.82,217.13,216.96,7.73]
[1757427605641,9.93235355,217.16,216.96,7.73]
[1757427605848,124.8,217.15,216.96,7.73]
[1757427606448,124.8,217.14,216.96,7.73]
[1757427607049,124.78,217.14,216.96,7.73]
[1757427607949,124.78,217.14,217.0,7.73]
[1757427608249,124.76,217.16,217.0,7.73]
[1757427608551,124.76,217.16,216.97,7.73]
[1757427609045,134.69235355,217.16,216.97,7.73]
[1757427609944,124.74,217.16,216.97,7.73]
[1757427610450,124.74,217.16,217.0,7.73]
[1757427610949,124.74,217.16,217.02,7.73]
[1757427612149,309.6,217.18,217.02,7.73]
[1757427617256,323.41,217.18,216.89,9.93235355]
[1757427617457,18.83884063,217.17,216.95,7.2]
[1757427617660,9.93235355,217.14,216.95,7.2]
[1757427617857,124.54,217.13,216.95,7.2]
[1757427618059,9.93235355,217.09,216.87,7.2]
[1757427618262,23.74235355,217.09,216.87,7.2]
[1757427619157,9.93235355,217.09,216.87,4.1496]
[1757427619358,9.93235355,217.09,216.88,7.2]
[1757427619563,9.93235355,217.04,216.76,7.2]
[1757427619754,9.93235355,216.99,216.76,11.3519]
[1757427619954,9.93235355,216.94,216.76,11.3519]
[1757427620159,124.5,216.93,216.76,7.2]
[1757427620462,124.0,217.01,216.76,7.2]
[1757427620660,5.02884063,217.06,216.78,7.2]
[1757427620862,124.5,217.0,216.84,7.2]
[1757427621254,133.93235355,217.04,216.84,7.2]
[1757427621455,124.5,217.02,216.84,7.2]
[1757427621857,9.93235355,216.99,216.76,7.2]
[1757427622861,9.93235355,216.99,216.78,7.2]
[1757427623061,124.48,216.98,216.78,7.2]
[1757427623265,124.48,216.97,216.78,7.2]
[1757427623467,124.48,216.97,216.84,7.2]
[1757427623660,309.74,217.03,216.84,7.2]
[1757427623862,309.74,217.03,216.87,4.1497]
[1757427624067,124.48,217.02,216.88,7.2]
[1757427626067,124.48,217.02,216.84,7.2]
[1757427627868,124.48,217.02,216.75,9.93235355]
[1757427627869,124.48,217.02,216.8,7.2]
[1757427628076,124.42,217.01,216.8,7.2]
[1757427628665,323.55,217.03,216.8,7.2]
[1757427628865,124.42,217.02,216.8,7.2]
[1757427629069,124.4,217.01,216.8,7.2]
[1757427629274,124.4,217.01,216.84,7.2]
[1757427632172,124.36,217.0,216.84,7.2]
[1757427634176,124.32,216.99,216.86,7.2]
[1757427634876,124.32,216.98,216.86,7.2]
[1757427635878,124.32,216.98,216.78,7.2]
[1757427636572,134.25235355,216.98,216.78,7.2]
[1757427637571,134.25235355,216.98,216.78,11.3513]
[1757427638067,134.25235355,216.98,216.78,7.2]
[1757427638273,124.32,216.98,216.78,7.2]
[1757427639769,124.32,216.98,216.78,11.3514]
[1757427639971,124.32,216.98,216.78,7.2]
[1757427640168,129.34884063,216.98,216.78,7.2]
[1757427640373,9.93235355,216.94,216.78,7.2]
[1757427640773,9.93235355,216.94,216.72,121.02003459]
[1757427640978,9.93235355,216.94,216.73,7.2]
[1757427641372,9.93235355,216.94,216.72,121.02003459]
[1757427641373,9.93235355,216.94,216.74,4.1521]
[1757427641569,9.93235355,216.94,216.75,7.2]
[1757427643280,9.93235355,216.94,216.75,11.3519]
[1757427643780,38.36,216.93,216.77,4.1517]
[1757427643980,38.36,216.93,216.78,7.28]
[1757427644880,112.56,216.92,216.78,7.28]
[1757427645281,112.56,216.92,216.73,7.28]
[1757427645977,9.93235355,216.89,216.73,7.28]
[1757427647478,9.93235355,216.89,216.66,7.28]
[1757427647783,9.93235355,216.84,216.66,7.28]
[1757427647976,87.82,216.83,216.66,7.28]
[1757427648683,9.93235355,216.84,216.66,7.28]
[1757427648979,79.9,216.84,216.66,7.28]
[1757427649182,79.9,216.84,216.67,4.1535]
[1757427649376,79.9,216.84,216.68,7.28]
[1757427649577,124.08,216.84,216.68,7.28]
[1757427649976,124.08,216.83,216.71,7.28]
[1757427650180,9.93235355,216.87,216.71,7.28]
[1757427650181,310.02,216.88,216.71,7.28]
[1757427650481,124.08,216.87,216.76,7.28]
[1757427652285,310.02,216.88,216.76,7.28]
[1757427652474,124.04,216.87,216.76,7.28]
[1757427652680,310.02,216.88,216.76,7.28]
[1757427652681,434.06,216.88,216.76,7.28]
[1757427653280,434.06,216.88,216.78,4.1514]
[1757427653880,310.02,216.88,216.78,4.1514]
[1757427654387,310.02,216.88,216.8,7.28]
[1757427656189,124.02,216.9,216.8,7.28]
[1757427656488,124.02,216.9,216.78,4.1514]
[1757427656684,6.35756773,216.88,216.72,7.28]
[1757427656879,6.35756773,216.84,216.66,7.28]
[1757427657078,41.58,216.83,216.66,7.28]
[1757427657479,6.35756773,216.84,216.66,7.28]
[1757427657480,45.98,216.82,216.66,7.28]
[1757427657680,49.38,216.81,216.69,7.28]
[1757427658083,6.35756773,216.86,216.69,11.4331]
[1757427658277,12.0,216.85,216.69,7.28]
[1757427658476,12.0,216.84,216.69,7.28]
[1757427659483,12.0,216.84,216.7,4.1529]
[1757427659683,12.0,216.84,216.69,7.28]
[1757427659884,18.35756773,216.84,216.69,7.28]
[1757427660888,6.35756773,216.84,216.69,7.28]
[1757427661087,37.45756773,216.89,216.73,7.28]
[1757427661384,6.35756773,216.85,216.73,7.28]
[1757427661590,6.35756773,216.85,216.64,8.34]
[1757427661781,6.35756773,216.85,216.61,6.35756773]
[1757427661782,6.35756773,216.85,216.68,7.28]
[1757427662188,6.35756773,216.76,216.68,7.28]
[1757427662583,6.35756773,216.76,216.6,0.80324066]
[1757427662584,6.35756773,216.76,216.61,7.28]
[1757427663187,6.35756773,216.76,216.62,7.28]
[1757427663389,6.35756773,216.8,216.62,7.28]
[1757427663586,94.82,216.79,216.66,4.1537]
[1757427663887,94.82,216.79,216.67,7.28]
[1757427664093,94.82,216.79,216.67,11.4335]
[1757427664683,123.84,216.82,216.68,4.1533]
[1757427664887,123.84,216.83,216.69,7.28]
[1757427665387,310.1,216.85,216.73,7.28]
[1757427666191,310.1,216.85,216.66,7.28]
[1757427666484,6.35756773,216.84,216.66,7.28]
[1757427667591,6.35756773,216.81,216.58,7.28]
[1757427667794,104.34,216.8,216.58,7.28]
[1757427667994,6.35756773,216.77,216.58,7.28]
[1757427668488,6.35756773,216.73,216.58,7.28]
[1757427668688,87.44,216.72,216.58,7.28]
[1757427670091,5.02884063,216.81,216.62,7.28]
[1757427670395,120.94,216.74,216.62,7.28]
[1757427670596,75.6,216.77,216.62,7.28]
[1757427670894,75.6,216.77,216.63,4.1543]
[1757427671096,123.76,216.79,216.62,7.28]
[1757427671689,310.1,216.85,216.66,7.28]
[1757427671896,111.58,216.84,216.66,7.28]
[1757427672091,123.74,216.83,216.7,4.1529]
[1757427672297,123.74,216.83,216.71,7.28]
[1757427672490,6.35756773,216.82,216.65,7.28]
[1757427673695,6.35756773,216.72,216.55,7.06]
[1757427673900,120.44,216.71,216.55,7.06]
[1757427674294,120.44,216.71,216.51,0.80337974]
[1757427674600,120.44,216.71,216.53,7.06]
[1757427676900,6.35756773,216.68,216.53,7.06]
[1757427677100,6.35756773,216.68,216.48,7.06]
[1757427677998,6.35756773,216.68,216.5,4.1569]
[1757427678198,6.35756773,216.68,216.48,7.06]
[1757427678496,16.22,216.68,216.48,7.06]
[1757427678710,16.22,216.68,216.53,7.06]
[1757427679000,6.35756773,216.72,216.53,7.06]
[1757427679202,28.21756773,216.72,216.53,7.06]
[1757427679502,28.21756773,216.72,216.56,7.06]
[1757427679904,28.21756773,216.72,216.46,121.93311354]
[1757427679905,6.35756773,216.68,216.48,7.06]
[1757427681397,6.35756773,216.64,216.48,7.06]
[1757427681905,15.64,216.63,216.48,7.06]
[1757427683103,15.64,216.63,216.48,11.2172]
[1757427683407,6.35756773,216.66,216.49,7.06]
[1757427683608,407.51756773,216.7,216.5,7.06]
[1757427684103,310.3,216.7,216.53,6.35756773]
[1757427684304,310.3,216.7,216.54,7.06]
[1757427684502,6.35756773,216.68,216.54,7.06]
[1757427685307,6.35756773,216.64,216.47,7.06]
[1757427685608,130.25756773,216.64,216.47,7.06]
[1757427686403,130.25756773,216.64,216.48,4.1573]
[1757427686604,6.35756773,216.64,216.49,7.06]
[1757427686804,76.9,216.66,216.5,7.06]
[1757427687004,76.9,216.66,216.49,6.35756773]
[1757427687304,76.9,216.66,216.54,7.06]
[1757427687908,76.9,216.66,216.54,11.2161]
[1757427688410,76.9,216.66,216.54,7.06]
[1757427689405,6.35756773,216.65,216.54,7.06]
[1757427689707,6.35756773,216.65,216.48,7.06]
[1757427691209,123.8,216.67,216.51,11.2166]
[1757427691399,123.8,216.67,216.47,7.06]
[1757427691605,123.8,216.67,216.51,6.35756773]
[1757427691910,123.8,216.67,216.52,7.06]
[1757427692506,6.35756773,216.64,216.47,7.06]
[1757427693007,114.29756773,216.69,216.47,7.06]
[1757427693208,114.29756773,216.69,216.51,7.06]
[1757427693506,310.3,216.7,216.51,7.06]
[1757427693719,123.8,216.69,216.51,7.06]
[1757427694507,123.8,216.69,216.52,4.1565]
[1757427694707,123.8,216.69,216.53,7.06]
[1757427695409,310.3,216.7,216.53,7.06]
[1757427695810,310.3,216.7,216.53,4.1562]
[1757427696111,310.3,216.7,216.54,7.06]
[1757427696410,310.3,216.7,216.54,11.216]
[1757427696610,310.3,216.7,216.54,7.06]
[1757427697203,310.3,216.7,216.54,13.41756773]
[1757427697402,310.3,216.7,216.55,7.06]
[1757427697705,310.3,216.7,216.56,4.1556]
[1757427698107,310.3,216.7,216.55,7.06]
[1757427698911,310.3,216.7,216.55,11.2158]
[1757427699311,434.1,216.7,216.55,7.06]
[1757427699613,434.1,216.7,216.55,11.2159]
[1757427700011,123.8,216.7,216.55,7.06]
[1757427702316,123.8,216.7,216.55,11.2158]
[1757427702711,123.8,216.7,216.56,4.1556]
[1757427703015,128.80884063,216.78,216.59,7.06]
[1757427703206,123.78,216.78,216.59,7.06]
[1757427703406,123.78,216.78,216.63,7.06]
[1757427704812,123.78,216.8,216.63,7.06]
[1757427705117,6.35756773,216.83,216.63,7.06]
[1757427705312,123.78,216.82,216.63,7.06]
[1757427705707,6.35756773,216.79,216.59,7.26]
[1757427707015,6.35756773,216.75,216.5,3.85304217]
[1757427707223,6.35756773,216.62,216.46,7.26]
[1757427707414,55.72,216.61,216.46,7.26]
[1757427707609,6.35756773,216.58,216.4,7.26]
[1757427708115,5.02884063,216.59,216.4,7.26]
[1757427708417,5.02884063,216.6,216.4,7.26]
[1757427708618,124.62,216.59,216.4,7.26]
[1757427708810,6.35756773,216.61,216.4,7.26]
[1757427709016,321.70640836,216.65,216.41,7.26]
[1757427709217,124.62,216.64,216.46,7.26]
[1757427711420,124.62,216.64,216.38,7.26]
[1757427711421,6.35756773,216.61,216.38,7.26]
[1757427711821,6.35756773,216.64,216.42,7.26]
[1757427712318,6.35756773,216.64,216.43,4.1582]
[1757427712622,6.35756773,216.64,216.44,7.26]
[1757427713415,6.35756773,216.64,216.33,5.063498]
[1757427713416,6.35756773,216.51,216.35,3.85304217]
[1757427713614,6.35756773,216.44,216.27,7.26]
[1757427713815,6.04,216.46,216.27,7.26]
[1757427714022,6.04,216.46,216.31,7.26]
[1757427714220,6.35756773,216.48,216.31,7.26]
[1757427714427,10.00615039,216.45,216.21,4.1624]
[1757427714617,127.0,216.44,216.2,7.26]
[1757427714919,127.0,216.43,216.22,7.26]
[1757427715126,10.00615039,216.45,216.22,7.26]
[1757427715127,10.00615039,216.45,216.27,4.1612]
[1757427715319,10.00615039,216.4,216.18,7.26]
[1757427715717,10.00615039,216.35,216.18,7.26]
[1757427715921,73.28,216.34,216.12,7.26]
[1757427716324,10.00615039,216.35,216.12,7.26]
[1757427716530,54.3,216.34,216.13,0.80500584]
[1757427716730,54.3,216.34,216.16,4.1633]
[1757427717027,124.0,216.42,216.14,7.26]
[1757427717028,10.00615039,216.4,216.14,7.26]
[1757427717221,10.00615039,216.4,216.15,7.26]
[1757427717426,10.00615039,216.4,216.21,11.4223]
[1757427717724,127.14,216.39,216.21,11.4223]
[1757427718032,10.00615039,216.29,216.06,7.26]
[1757427718329,127.1,216.28,216.06,7.26]
[1757427718520,127.1,216.28,216.06,8.06523868]
[1757427719220,127.94,216.28,216.06,8.06523868]
[1757427719825,10.00615039,216.29,216.06,8.06523868]
[1757427720023,127.94,216.28,216.13,4.1639]
[1757427720225,127.94,216.28,216.11,7.26]
[1757427720532,10.00615039,216.29,216.09,18.6]
[1757427720533,127.84,216.33,216.18,4.163]
[1757427720831,127.84,216.36,216.18,7.26]
[1757427721027,127.84,216.36,216.2,4.1626]
[1757427721234,127.84,216.36,216.18,7.26]
[1757427721634,127.84,216.36,216.14,11.4237]
[1757427722235,127.84,216.36,216.16,4.1633]
[1757427722626,137.84615039,216.36,216.14,7.26]
[1757427723241,124.0,216.35,216.14,7.26]
[1757427723630,10.00615039,216.3,216.08,442.4648]
[1757427723838,127.66,216.32,216.11,7.26]
[1757427724736,127.66,216.32,216.13,4.1639]
[1757427725038,127.66,216.32,216.11,7.26]
[1757427725941,17.56934346,216.54,216.1,10.00615039]
[1757427725942,15.0482791,216.55,216.27,7.26]
[1757427726133,10.00615039,216.59,216.32,7.26]
[1757427726334,127.92,216.58,216.32,7.26]
[1757427726735,10.00615039,216.54,216.32,17.96]
[1757427726940,10.00615039,216.49,216.26,310.74]
[1757427727238,6.2,216.48,216.25,7.26]
[1757427727435,6.2,216.48,216.17,7.26]
[1757427727436,10.00615039,216.44,216.17,7.26]
[1757427727635,10.00615039,216.47,216.22,7.26]
[1757427727839,10.00615039,216.47,216.22,11.4222]
[1757427728040,10.00615039,216.47,216.22,22.2022]
[1757427728544,10.00615039,216.47,216.22,7.26]
[1757427729338,310.74,216.49,216.27,7.26]
[1757427729538,310.74,216.49,216.28,10.8]
[1757427729939,310.74,216.49,216.29,17.54]
[1757427730138,310.74,216.49,216.3,24.36]
[1757427730333,310.74,216.49,216.3,16.16]
[1757427730536,310.74,216.49,216.27,7.26]
[1757427730843,310.74,216.49,216.28,11.62]
[1757427731043,310.74,216.49,216.27,25.28]
[1757427731435,310.74,216.49,216.27,7.26]
[1757427731842,310.74,216.49,216.27,22.1812]
[1757427732138,310.74,216.49,216.31,10.00615039]
[1757427732341,310.74,216.49,216.32,7.26]
[1757427732733,128.26,216.56,216.34,7.26]
[1757427732935,128.26,216.56,216.33,12.12]
[1757427732936,128.26,216.55,216.37,7.26]
[1757427733139,310.74,216.65,216.37,7.26]
[1757427733342,96.2,216.6,216.37,7.26]
[1757427733548,96.2,216.6,216.37,18.04]
[1757427733843,220.2,216.6,216.37,18.04]
[1757427734044,96.2,216.6,216.37,18.04]
[1757427734545,96.2,216.6,216.37,22.1993]
[1757427734938,96.2,216.6,216.36,10.00615039]
[1757427734939,10.00615039,216.57,216.31,17.59615039]
[1757427735143,10.00615039,216.57,216.31,7.59]
[1757427735545,10.00615039,216.52,216.31,7.59]
[1757427735741,83.48,216.51,216.25,7.59]
[1757427736146,83.48,216.51,216.27,4.1613]
[1757427736341,10.00615039,216.47,216.25,7.59]
[1757427736544,134.00615039,216.47,216.25,7.59]
[1757427737150,134.00615039,216.47,216.27,7.59]
[1757427737348,128.2,216.58,216.32,10.00615039]
[1757427737550,128.2,216.57,216.34,7.59]
[1757427737742,124.0,216.56,216.34,7.59]
[1757427737944,10.00615039,216.54,216.34,7.59]
[1757427738747,10.00615039,216.49,216.25,7.59]
[1757427738953,10.00615039,216.44,216.25,7.59]
[1757427739147,30.42,216.43,216.25,7.59]
[1757427740651,30.42,216.43,216.18,7.59]
[1757427740954,10.00615039,216.39,216.18,7.59]
[1757427741950,10.00615039,216.39,216.18,11.753]
[1757427742146,10.00615039,216.39,216.18,7.59]
[1757427745251,25.02,216.4,216.23,7.59]
[1757427746344,25.02,216.4,216.16,10.08]
[1757427746345,35.02615039,216.4,216.16,10.08]
[1757427746548,35.02615039,216.4,216.17,7.59]
[1757427746860,10.00615039,216.35,216.17,7.59]
[1757427747448,10.00615039,216.35,216.12,7.59]
[1757427748547,10.00615039,216.29,216.12,7.59]
[1757427748746,21.64,216.28,216.12,7.59]
[1757427749749,127.20615039,216.29,216.12,7.59]
[1757427749948,117.2,216.29,216.12,7.59]
[1757427751054,310.8,216.32,216.12,17.85]
[1757427751261,310.8,216.32,216.13,7.59]
[1757427751453,310.8,216.32,216.18,7.59]
[1757427754566,310.8,216.32,216.12,7.59]
[1757427756170,437.82,216.32,216.16,7.59]
[1757427756464,437.82,216.32,216.17,4.1632]
[1757427757758,437.82,216.32,216.18,7.59]
[1757427758165,437.82,216.32,216.19,4.1628]
[1757427758471,10.00615039,216.3,216.11,7.59]
[1757427759070,10.00615039,216.25,216.0,3.83232649]
[1757427759366,10.00615039,216.2,215.99,7.59]
[1757427759573,127.1,216.19,215.99,7.59]
[1757427760273,10.00615039,216.15,215.99,7.59]
[1757427760573,10.00615039,216.15,215.97,0.80551826]
[1757427760774,127.1,216.19,215.98,7.59]
[1757427760971,10.00615039,216.16,215.98,7.59]
[1757427761270,10.00615039,216.11,215.93,7.59]
[1757427761469,84.84,216.1,215.93,7.59]
[1757427761662,127.44,216.1,215.93,7.59]
[1757427762571,10.00615039,216.11,215.93,7.59]
[1757427762774,127.38,216.1,215.93,7.59]
[1757427763475,0.02,216.09,215.93,7.59]
[1757427764075,127.26,216.09,215.93,7.59]
[1757427764373,0.02,216.09,215.93,7.59]
[1757427765374,0.02,216.15,215.93,7.59]
[1757427765678,123.22,216.14,215.95,7.7]
[1757427765868,0.02,216.15,215.95,7.7]
[1757427766479,0.02,216.15,215.98,4.1668]
[1757427766673,0.02,216.15,215.99,7.7]
[1757427767275,0.02,216.15,216.0,4.1664]
[1757427767472,0.02,216.15,215.99,7.7]
[1757427767876,310.92,216.16,215.99,7.7]
[1757427768173,0.02,216.21,216.06,7.7]
[1757427768474,0.02,216.28,216.07,7.7]
[1757427768674,126.88,216.27,216.11,4.1643]
[1757427768874,126.88,216.27,216.12,7.7]
[1757427769277,126.88,216.27,216.13,4.164]
[1757427769476,0.02,216.28,216.12,7.7]
[1757427769683,0.02,216.27,216.12,7.7]
[1757427770780,126.74,216.26,216.12,7.7]
[1757427773680,0.02,216.25,216.12,7.7]
[1757427774485,173.75134069,216.32,216.12,7.7]
[1757427774486,5.04212871,216.38,216.25,7.7]
[1757427774782,0.02,216.5,216.35,6.39438126]
[1757427774983,0.02,216.51,216.3,7.7]
[1757427776382,0.02,216.51,216.3,14.09438126]
[1757427777284,6.39438126,216.52,216.3,14.09438126]
[1757427777686,0.02,216.51,216.3,14.09438126]
[1757427778086,6.39438126,216.52,216.3,14.09438126]
[1757427778282,6.39438126,216.48,216.3,7.7]
[1757427778482,0.02,216.47,216.3,7.7]
[1757427778678,0.02,216.45,216.3,7.7]
[1757427779883,0.02,216.43,216.3,7.7]
[1757427781987,0.02,216.39,216.24,7.7]
[1757427782192,0.02,216.35,216.15,7.7]
[1757427782392,87.9,216.35,216.15,7.7]
[1757427784190,0.02,216.23,216.05,7.7]
[1757427785289,6.39438126,216.28,216.06,7.7]
[1757427785496,3.84,216.27,216.09,7.7]
[1757427785899,6.39438126,216.28,216.09,7.7]
[1757427787393,110.74,216.29,216.09,7.7]
[1757427787788,110.74,216.29,216.1,7.7]
[1757427788492,0.02,216.29,216.11,7.7]
[1757427789090,127.48,216.29,216.11,7.7]
[1757427790389,127.3,216.33,216.13,7.7]
[1757427791291,310.9,216.34,216.17,7.7]
[1757427791694,310.9,216.34,216.17,11.8632]
[1757427791896,310.9,216.34,216.18,7.7]
[1757427792796,6.39438126,216.32,216.11,7.7]
[1757427792989,0.02,216.31,216.12,7.7]
[1757427793394,127.2,216.3,216.12,7.7]
[1757427794691,6.39438126,216.27,216.12,7.7]
[1757427795005,0.02,216.26,216.12,7.7]
[1757427796596,6.39438126,216.27,216.05,6.39438126]
[1757427796799,0.02,216.26,216.06,7.44]
[1757427798698,0.02,216.26,216.08,7.44]
[1757427800697,0.02,216.22,216.08,7.44]
[1757427801103,6.39438126,216.19,216.08,7.44]
[1757427802395,0.02,216.18,215.99,7.44]
[1757427802594,6.41438126,216.15,215.99,7.44]
[1757427805303,44.5,216.21,215.9,7.44]
[1757427805304,6.41438126,216.05,215.9,7.44]
[1757427805897,0.02,216.12,215.91,6.39438126]
[1757427806104,0.02,216.12,215.92,16.7]
[1757427806311,6.39438126,216.13,215.97,7.44]
[1757427807005,0.02,216.12,215.97,7.44]
[1757427807601,6.39438126,216.04,215.89,7.44]
[1757427808199,6.39438126,215.99,215.87,0.80598467]
[1757427808401,0.02,216.03,215.87,0.80598467]
[1757427808597,6.39438126,216.01,215.88,7.44]
[1757427812806,6.39438126,215.97,215.85,0.80607801]
[1757427813012,6.39438126,215.97,215.86,7.44]
[1757427813513,6.39438126,216.03,215.86,7.44]
[1757427813911,0.02,216.02,215.86,7.44]
[1757427814608,311.1,216.08,215.88,7.44]
[1757427814609,0.02,216.08,215.88,7.44]
[1757427814814,6.39438126,216.13,215.93,7.44]
[1757427815014,6.41438126,216.13,215.93,7.44]
[1757427815213,6.41438126,216.13,215.93,4.1679]
[1757427815516,6.41438126,216.13,215.94,7.44]
[1757427815915,6.41438126,216.13,215.96,7.44]
[1757427816316,73.04,216.16,215.95,6.39438126]
[1757427816507,0.02,216.18,215.99,6.39438126]
[1757427816809,0.02,216.18,216.0,7.44]
[1757427817010,0.02,216.18,215.99,6.39438126]
[1757427817215,0.02,216.17,216.0,7.44]
[1757427819420,311.2,216.22,216.0,7.44]
[1757427819421,317.59438126,216.22,216.01,6.39438126]
[1757427819621,317.59438126,216.22,216.02,7.44]
[1757427820123,0.02,216.32,216.06,7.44]
[1757427820428,6.41438126,216.32,216.1,7.44]
[1757427820822,0.02,216.27,216.1,7.44]
[1757427821023,6.39438126,216.24,216.1,7.44]
[1757427821223,0.02,216.23,216.1,7.44]
[1757427821927,8.2,216.28,216.1,7.44]